bitfinex-derivatives/quotes_ETHF0:USTF0_20250926
["timestamp","ask_amount","ask_price","bid_price","bid_amount"]
[1758913176576,1.57152878,4045.5,4045.4,0.77729]
[1758913176972,3.40174562,4045.5,4045.1,1.44425]
[1758913177271,2.52111684,4045.2,4045.1,0.44462]
[1758913177474,3.33314857,4045.2,4045.1,0.77732]
[1758913178384,3.08114857,4045.2,4045.1,0.77732]
[1758913178675,3.33314857,4045.2,4045.1,0.77732]
[1758913182781,3.33314857,4045.2,4045.1,0.44462]
[1758913183392,3.33314857,4045.2,4045.1,0.77502]
[1758913183790,1.56963173,4045.2,4045.1,0.98382]
[1758913185394,1.56963173,4045.2,4045.1,1.20772]
[1758913185990,1.00233173,4045.2,4045.1,1.20772]
[1758913186192,1.03373173,4045.2,4045.1,1.20772]
[1758913186692,1.25723173,4045.2,4045.1,1.20772]
[1758913186892,1.58933173,4045.2,4045.1,1.20772]
[1758913187594,3.35284857,4045.2,4045.1,0.77502]
[1758913188196,3.35284857,4045.2,4045.1,0.27502]
[1758913188392,3.35284857,4045.2,4045.1,0.71964]
[1758913188797,3.35284857,4045.2,4045.1,0.44462]
[1758913189094,1.58933173,4045.2,4045.1,0.44462]
[1758913189295,1.58933173,4045.2,4045.1,0.65342]
[1758913189687,1.58933173,4045.2,4045.1,0.87732]
[1758913190191,1.58933173,4045.2,4045.1,1.20772]
[1758913191396,0.56003173,4045.2,4045.1,1.20772]
[1758913191598,0.81203173,4045.2,4045.1,1.20772]
[1758913191996,0.56003173,4045.2,4045.1,1.20772]
[1758913192301,1.01833173,4045.2,4045.1,1.20772]
[1758913192492,1.57393173,4045.2,4045.1,1.20772]
[1758913194995,1.24183173,4045.2,4045.1,1.20772]
[1758913195701,1.57393173,4045.2,4045.1,1.20772]
[1758913197801,1.24183173,4045.2,4045.1,1.20772]
[1758913197998,1.01833173,4045.2,4045.1,1.20772]
[1758913198499,1.01943976,4045.2,4045.1,1.20772]
[1758913200299,0.99093976,4045.2,4045.1,1.20772]
[1758913200499,1.57503976,4045.2,4044.7,1.11166]
[1758913200800,0.7619,4044.6,4044.5,4.21589]
[1758913201003,0.56113976,4044.6,4044.5,4.21589]
[1758913201300,0.251,4045.2,4045.1,0.44462]
[1758913201595,0.00189705,4045.5,4045.4,0.44459]
[1758913201800,0.00189705,4045.5,4045.4,1.20769]
[1758913202299,0.76379705,4045.5,4045.4,1.20769]
[1758913203189,0.00189705,4045.5,4045.4,1.20769]
[1758913203394,0.76379705,4045.5,4045.4,1.20769]
[1758913204502,0.00189705,4045.5,4045.4,1.20769]
[1758913204696,0.43169705,4045.5,4045.4,1.20769]
[1758913205606,0.76379705,4045.5,4045.4,1.20769]
[1758913206498,0.43169705,4045.5,4045.4,1.20769]
[1758913207002,0.00189705,4045.5,4045.4,1.20769]
[1758913207197,0.21879705,4045.5,4045.4,1.20769]
[1758913207505,1.01059705,4045.5,4045.4,1.20769]
[1758913208593,0.67899705,4045.5,4045.4,1.20769]
[1758913209700,0.46979705,4045.5,4045.4,1.20769]
[1758913209897,0.00189705,4045.5,4045.4,2.97120684]
[1758913211000,3.9655,4046.8,4046.7,0.75715]
[1758913211301,5.98001684,4046.8,4046.7,0.46645]
[1758913211605,0.3316,4047.1,4047.0,0.44442]
[1758913211798,0.2169,4047.1,4047.0,0.98472]
[1758913211993,1.01090927,4047.1,4047.0,0.98472]
[1758913212305,2.77442611,4047.1,4047.0,0.44442]
[1758913212501,2.77442611,4047.1,4046.2,1.11127]
[1758913212806,0.2144,4046.3,4046.2,0.4239]
[1758913212998,0.2144,4046.3,4046.2,0.8684]
[1758913213197,3.7371,4046.6,4046.5,0.99947]
[1758913213398,4.24705222,4046.6,4046.5,1.33517]
[1758913213606,3.93215222,4046.6,4046.5,1.33517]
[1758913214104,4.46065222,4046.6,4046.5,1.33517]
[1758913215400,3.9507,4046.6,4046.5,1.33517]
[1758913215904,4.46697994,4046.6,4046.5,1.33517]
[1758913216306,3.9507,4046.6,4046.5,1.33517]
[1758913217013,4.46683827,4046.6,4046.5,1.33517]
[1758913218503,3.9507,4046.6,4046.5,1.33517]
[1758913218702,5.36491065,4046.6,4046.5,1.33517]
[1758913219211,5.88093339,4046.6,4046.5,1.33517]
[1758913219411,5.36491065,4046.6,4046.5,1.33517]
[1758913219609,5.36491065,4046.6,4045.8,0.251]
[1758913219610,0.7429,4046.2,4046.1,0.98951]
[1758913219803,1.50979595,4046.2,4046.1,0.44451]
[1758913220399,0.7429,4045.7,4045.6,0.65917]
[1758913220605,3.4222,4045.9,4045.8,0.86845]
[1758913220804,3.6732,4045.9,4045.8,0.86845]
[1758913221012,3.6732,4045.9,4045.8,1.20415]
[1758913221314,0.4654,4045.9,4045.8,1.20415]
[1758913222603,0.251,4045.9,4045.8,1.20415]
[1758913224410,0.251,4045.9,4045.6,1.41421065]
[1758913224411,3.9507,4046.4,4046.3,1.20409]
[1758913224606,4.71796652,4046.4,4046.3,1.20409]
[1758913225709,4.15206652,4046.4,4046.3,1.20409]
[1758913225915,4.18946652,4046.4,4046.3,1.20409]
[1758913226402,4.50436652,4046.4,4046.3,1.20409]
[1758913227604,4.2017,4046.4,4046.3,1.20409]
[1758913227801,4.70324748,4046.4,4046.3,0.44449]
[1758913228207,4.70324748,4046.4,4046.3,0.78019]
[1758913228609,4.70324748,4046.4,4045.7,0.3357]
[1758913228803,1.24444748,4046.3,4046.2,0.4445]
[1758913229007,4.45224748,4046.3,4046.2,0.4445]
[1758913229207,4.13734748,4046.3,4045.9,1.11134]
[1758913229406,0.7429,4046.0,4045.9,0.545]
[1758913229612,1.50274305,4046.0,4045.9,0.98954]
[1758913229814,3.0410537,4046.0,4045.9,0.44454]
[1758913231511,3.0410537,4046.0,4045.6,1.11142]
[1758913231818,3.0410537,4046.0,4045.4,0.98959]
[1758913231819,0.7429,4045.5,4045.4,0.98959]
[1758913232120,0.9939,4045.5,4045.4,1.20419]
[1758913233008,0.679,4045.5,4045.4,1.20419]
[1758913233210,0.251,4045.5,4045.4,2.61840065]
[1758913233818,0.4654,4045.5,4045.4,2.61840065]
[1758913234115,3.2078,4045.8,4045.7,0.44456]
[1758913234420,0.251,4045.8,4045.7,2.61837065]
[1758913234718,0.4654,4045.8,4045.7,1.20416]
[1758913236121,0.9939,4045.8,4045.7,1.20416]
[1758913236314,6.12491048,4045.8,4045.5,0.44458]
[1758913236624,0.7429,4045.2,4045.1,0.98962]
[1758913236919,0.428,4045.2,4045.1,1.20422]
[1758913237219,0.251,4045.3,4045.2,0.86851]
[1758913237420,0.251,4045.3,4045.2,1.20421]
[1758913237616,0.428,4045.3,4045.2,1.20421]
[1758913237823,0.5293,4045.7,4045.6,1.20417]
[1758913238116,1.50895194,4045.7,4045.6,1.20417]
[1758913240421,1.50895194,4045.7,4045.6,0.98957]
[1758913240624,1.50895194,4045.7,4045.6,0.44457]
[1758913240820,0.3368,4045.5,4045.4,0.44459]
[1758913241122,1.38035194,4045.5,4045.4,0.44459]
[1758913242225,1.38035194,4045.5,4045.4,0.75819]
[1758913242427,1.38035194,4045.5,4045.4,0.25819]
[1758913242731,1.38035194,4045.5,4045.4,0.70278]
[1758913243125,1.63135194,4045.5,4045.4,0.44459]
[1758913243725,1.38035194,4045.5,4045.4,0.66179]
[1758913243929,1.63135194,4045.5,4045.4,0.66179]
[1758913244330,1.50895194,4045.5,4045.4,0.66179]
[1758913244530,1.50895194,4045.5,4045.4,0.97539]
[1758913245627,1.64145194,4045.5,4045.4,0.44459]
[1758913246228,1.64145194,4045.5,4044.9,1.11162]
[1758913246530,0.7409,4045.3,4045.2,0.4446]
[1758913246734,0.7409,4045.0,4044.9,0.97544]
[1758913246923,0.9919,4045.0,4044.9,0.97545]
[1758913247123,1.50733518,4045.0,4044.9,0.97545]
[1758913247531,2.92154583,4045.0,4044.9,0.97545]
[1758913247723,3.49868583,4045.0,4044.9,0.66185]
[1758913247926,3.05404583,4045.0,4044.9,0.44465]
[1758913248137,0.7409,4044.9,4044.8,0.44466]
[1758913248331,0.7409,4044.9,4044.7,0.44467]
[1758913248332,0.7409,4044.8,4044.7,0.44467]
[1758913248535,0.7409,4044.7,4044.6,0.44468]
[1758913248731,0.99389,4044.5,4044.4,0.0024699]
[1758913248938,3.24773583,4044.5,4044.4,0.0024699]
[1758913249232,3.49873583,4044.5,4044.4,0.0024699]
[1758913249733,8.49873583,4044.5,4044.4,0.0024699]
[1758913250132,8.05404583,4044.5,4044.4,0.4471699]
[1758913250336,3.05404583,4044.5,4044.4,0.4471699]
[1758913250833,3.05404583,4044.5,4044.1,1.42543]
[1758913251029,3.7406,4044.2,4044.1,1.19263]
[1758913251242,4.71513518,4044.2,4044.1,1.19263]
[1758913251731,3.93183518,4044.2,4044.1,1.19263]
[1758913252032,0.25391023,4044.2,4044.1,1.19576704]
[1758913252232,0.00291023,4044.2,4044.1,6.19576704]
[1758913252431,0.25391023,4044.2,4044.1,6.19576704]
[1758913253328,3.4164,4045.2,4045.1,1.19252]
[1758913253634,3.2078,4045.2,4045.1,1.19252]
[1758913253931,3.2078,4045.2,4045.1,6.19252]
[1758913254238,3.20954077,4045.2,4045.1,6.19252]
[1758913255023,3.20954077,4045.2,4045.1,1.19252]
[1758913255228,5.61565142,4045.2,4045.1,1.19252]
[1758913257029,3.66914077,4045.2,4045.1,1.19252]
[1758913257747,3.46054077,4045.2,4045.1,1.19252]
[1758913259133,0.25274077,4045.2,4045.1,1.19252]
[1758913259337,0.25274077,4045.2,4045.1,1.22629641]
[1758913259931,0.46134077,4045.2,4045.1,1.22629641]
[1758913260130,0.25274077,4045.2,4045.1,1.22629641]
[1758913261932,0.00174077,4045.2,4045.1,1.22629641]
[1758913262339,0.00174077,4045.2,4045.1,4.43409641]
[1758913262630,0.21034077,4045.2,4045.1,4.43409641]
[1758913263239,0.00174077,4045.2,4045.1,4.43409641]
[1758913264139,0.74264077,4045.2,4045.1,3.68619641]
[1758913264336,2.15685142,4045.2,4045.1,4.43409641]
[1758913264538,0.41844077,4045.2,4045.1,4.43409641]
[1758913264835,0.21034077,4045.2,4045.1,4.43409641]
[1758913266433,0.21034077,4045.2,4044.7,1.8015]
[1758913266434,5.34855142,4045.2,4044.7,1.8015]
[1758913266638,3.93434077,4045.2,4045.1,0.44462]
[1758913266837,0.7253,4044.9,4044.8,0.96736]
[1758913267039,1.50636417,4044.9,4044.8,0.96736]
[1758913267649,1.50636417,4044.9,4044.8,0.44466]
[1758913267947,2.92057482,4044.9,4044.8,1.17696]
[1758913268441,2.92057482,4044.9,4044.8,0.44466]
[1758913268943,2.92057482,4044.9,4044.8,1.17696]
[1758913269547,2.92057482,4044.9,4044.8,0.65376]
[1758913269746,2.92057482,4044.9,4044.8,0.44466]
[1758913269946,2.92057482,4044.9,4044.8,0.96736]
[1758913270251,2.92057482,4044.9,4044.8,1.17696]
[1758913270445,2.92057482,4044.9,4044.8,0.44466]
[1758913271448,0.7253,4044.8,4044.7,2.24617]
[1758913271642,0.7253,4044.2,4044.1,0.44786704]
[1758913271946,2.92618225,4044.2,4044.1,0.44786704]
[1758913273151,2.92618225,4044.2,4044.1,0.98676704]
[1758913273448,2.92618225,4044.2,4044.1,1.21236704]
[1758913274351,2.92618225,4044.2,4044.1,0.44786704]
[1758913277044,2.92618225,4044.2,4044.1,0.98676704]
[1758913278249,2.92618225,4044.2,4044.1,0.44786704]
[1758913278654,1.5119716,4044.2,4044.1,0.44786704]
[1758913279551,1.5119716,4044.2,4044.1,0.98676704]
[1758913280754,1.5119716,4044.2,4044.1,0.67276704]
[1758913280953,1.5119716,4044.2,4044.1,0.44786704]
[1758913281543,1.5119716,4044.2,4043.8,3.32668704]
[1758913281756,0.7454,4043.9,4043.8,2.21476704]
[1758913281957,0.9964,4043.9,4043.8,0.98367]
[1758913282148,0.9964,4043.9,4043.8,1.20927]
[1758913282546,0.9964,4043.9,4043.8,1.21192749]
[1758913282850,3.2078,4044.0,4043.9,1.20926]
[1758913283752,0.251,4044.3,4044.2,0.44472]
[1758913283953,0.251,4044.3,4044.2,1.20922]
[1758913284355,0.9964,4044.3,4044.2,0.75872]
[1758913284548,0.9964,4044.3,4044.2,0.98362]
[1758913284745,2.76090651,4044.3,4044.2,0.44472]
[1758913285149,3.29581144,4044.3,4044.2,0.44472]
[1758913285544,3.29581144,4044.3,4044.2,0.66962]
[1758913285746,1.53130493,4044.3,4044.2,0.98362]
[1758913286056,0.9964,4044.3,4044.2,0.98362]
[1758913287255,2.76090651,4044.3,4044.2,0.44472]
[1758913288160,3.29693718,4044.3,4044.2,0.44472]
[1758913288948,0.7454,4044.0,4043.9,3.03736]
[1758913289154,3.41921502,4044.0,4043.9,1.56666]
[1758913291056,0.7454,4043.1,4043.0,0.98376]
[1758913291258,0.9964,4043.1,4043.0,0.98376]
[1758913291459,0.9964,4043.1,4043.0,1.20936]
[1758913291856,0.9964,4043.1,4043.0,1.33446]
[1758913292052,0.9964,4043.1,4043.0,1.33711674]
[1758913293469,2.76090651,4043.1,4043.0,0.98641674]
[1758913293659,3.2966115,4043.1,4043.0,0.98641674]
[1758913295562,3.2966115,4043.1,4043.0,0.44751674]
[1758913297767,3.7414515,4043.1,4043.0,0.44751674]
[1758913297972,3.2966115,4043.1,4043.0,0.44751674]
[1758913298270,3.2966115,4043.1,4043.0,1.33711674]
[1758913298455,1.53210499,4043.1,4043.0,1.33711674]
[1758913298662,0.95190499,4043.1,4043.0,1.33711674]
[1758913298864,0.99060499,4043.1,4043.0,1.33711674]
[1758913299671,1.53210499,4043.1,4043.0,1.33711674]
[1758913301661,1.53210499,4043.1,4043.0,1.21201674]
[1758913301863,3.7414515,4043.1,4043.0,0.00265674]
[1758913302057,0.87918,4042.8,4042.7,2.06443503]
[1758913302268,0.315,4042.7,4042.6,0.2061]
[1758913302469,1.72989499,4042.7,4042.6,0.5116]
[1758913302784,1.72989499,4042.7,4042.6,0.4449]
[1758913303165,1.28500499,4042.7,4042.6,0.44809728]
[1758913303468,1.28500499,4042.7,4042.6,1.18569728]
[1758913303667,1.53600499,4042.7,4042.6,1.18569728]
[1758913303965,1.22100499,4042.7,4042.6,1.18569728]
[1758913304160,0.6853,4042.7,4042.6,1.18569728]
[1758913304366,0.2139,4042.7,4042.6,1.18569728]
[1758913304671,3.2078,4042.8,4042.7,1.18249]
[1758913304867,3.6727,4042.8,4042.7,1.18249]
[1758913305068,5.97260651,4042.8,4042.7,1.18249]
[1758913305570,5.97260651,4042.8,4042.7,0.95649]
[1758913306561,6.41748651,4042.8,4042.7,0.5116]
[1758913306872,6.41748651,4042.8,4042.6,0.00319728]
[1758913306873,0.7493,4042.7,4042.6,0.44809728]
[1758913307172,1.19419,4042.7,4042.6,0.00319728]
[1758913307566,1.72964896,4042.7,4042.6,0.00319728]
[1758913307765,1.28475896,4042.7,4042.6,0.44809728]
[1758913307974,1.72964896,4042.7,4042.6,0.00319728]
[1758913308367,1.72964896,4042.7,4042.4,1.1609]
[1758913308368,1.31931,4042.5,4042.4,1.1609]
[1758913308576,0.7493,4042.4,4042.3,1.91953]
[1758913308792,1.28475896,4042.4,4042.3,0.44493]
[1758913309276,1.28475896,4042.4,4042.3,0.44806306]
[1758913310176,1.28475896,4042.4,4042.3,0.95966306]
[1758913310471,0.7493,4042.7,4042.6,0.7376]
[1758913310672,0.315,4042.6,4042.3,0.44806306]
[1758913310874,0.7493,4042.4,4042.3,0.95966306]
[1758913311175,2.51380651,4042.4,4042.3,0.44806306]
[1758913311374,3.04886002,4042.4,4042.3,0.44806306]
[1758913311673,0.7493,4042.4,4042.3,0.95966306]
[1758913311875,0.7493,4042.4,4042.3,1.18566306]
[1758913312473,0.4343,4042.4,4042.3,1.18566306]
[1758913312777,0.7493,4042.4,4042.3,1.18566306]
[1758913313178,0.7493,4042.4,4042.3,0.95966306]
[1758913313478,1.28445912,4042.4,4042.3,0.95966306]
[1758913313876,1.28445912,4042.4,4042.3,0.65416306]
[1758913314067,3.04896563,4042.4,4042.3,0.44806306]
[1758913314273,1.28445912,4042.4,4042.3,1.18566306]
[1758913315278,1.28445912,4042.4,4042.3,0.44806306]
[1758913318072,1.28445912,4042.4,4042.3,0.75356306]
[1758913318372,1.28445912,4042.4,4042.3,0.95966306]
[1758913319980,1.28445912,4042.4,4042.3,1.18566306]
[1758913320382,1.53545912,4042.4,4042.3,1.18566306]
[1758913321281,1.53545912,4042.4,4041.5,5.55797]
[1758913321282,7.55066563,4042.4,4041.5,0.1288]
[1758913321482,3.2078,4041.7,4041.6,0.2061]
[1758913321776,3.2078,4041.7,4041.0,0.1288]
[1758913321777,2.55066563,4041.7,4041.0,0.1288]
[1758913321981,1.76450651,4041.2,4041.1,0.4321]
[1758913322175,2.55268894,4041.2,4041.1,0.43390945]
[1758913322379,2.55268894,4041.2,4041.1,0.00180945]
[1758913322585,7.55268894,4041.2,4041.0,0.1288]
[1758913322786,7.55268894,4041.2,4041.0,0.4321]
[1758913322787,0.78615912,4041.1,4041.0,0.4321]
[1758913322975,0.53515912,4041.1,4041.0,1.00598]
[1758913323274,0.251,4041.1,4041.0,0.6404]
[1758913323586,0.78615912,4041.1,4041.0,0.86824639]
[1758913325282,0.78615912,4041.1,4041.0,1.31332639]
[1758913325480,0.78715912,4041.1,4041.0,1.31332639]
[1758913326183,0.53515912,4041.1,4041.0,1.31332639]
[1758913326384,0.78715912,4041.1,4041.0,1.31332639]
[1758913326584,0.78715912,4041.1,4041.0,0.85524639]
[1758913328277,1.23221912,4041.1,4041.0,0.85524639]
[1758913328493,0.78715912,4041.1,4041.0,0.85524639]
[1758913328782,0.78715912,4041.1,4041.0,0.64234639]
[1758913329375,0.44508,4041.0,4040.7,0.5785]
[1758913329576,4.97230651,4040.8,4040.7,0.5785]
[1758913329783,5.50746563,4040.8,4040.7,0.4191]
[1758913330582,3.99495912,4040.8,4040.7,0.42153443]
[1758913331279,5.22430651,4040.8,4040.7,0.42153443]
[1758913331483,5.22430651,4040.8,4040.7,0.76043443]
[1758913331789,3.4598,4040.8,4040.7,0.76043443]
[1758913331985,3.2078,4040.8,4040.7,0.76043443]
[1758913332490,3.4598,4040.8,4040.7,0.76043443]
[1758913334990,3.2078,4040.8,4040.7,0.76043443]
[1758913335284,3.4598,4040.8,4040.7,0.76043443]
[1758913336394,5.22430651,4040.8,4040.7,1.20554443]
[1758913337091,6.21636216,4040.8,4040.7,0.34133443]
[1758913337291,6.21636216,4040.8,4040.7,0.78644443]
[1758913337497,5.77126216,4040.8,4040.7,0.78644443]
[1758913337690,5.77126216,4040.8,4040.7,0.99014443]
[1758913338085,5.77126216,4040.8,4040.7,1.20204443]
[1758913339489,4.00675565,4040.8,4040.7,1.20204443]
[1758913340689,5.4251637,4040.8,4040.7,1.20204443]
[1758913341490,5.4251637,4040.8,4040.7,0.49014443]
[1758913341992,0.4442,4040.7,4040.6,1.67712]
[1758913342196,0.99115565,4040.7,4040.6,0.64882]
[1758913342492,1.16315565,4040.7,4040.6,0.44786807]
[1758913342698,1.16315565,4040.7,4040.6,0.00274807]
[1758913342996,1.16315565,4040.7,4040.5,0.44513]
[1758913342997,0.4442,4040.7,4040.5,0.44513]
[1758913343289,1.06133,4040.5,4040.4,0.159]
[1758913343493,0.4442,4040.2,4040.1,0.3367]
[1758913343686,5.49440805,4040.2,4040.1,0.78187]
[1758913344089,5.32240805,4040.2,4040.1,0.98742205]
[1758913344586,5.86924782,4040.2,4040.1,0.98742205]
[1758913345486,6.04124782,4040.2,4040.1,0.98742205]
[1758913346082,6.04124782,4040.2,4040.1,0.78372205]
[1758913346283,6.04124782,4040.2,4040.1,0.44702205]
[1758913346693,6.04124782,4040.2,4040.1,0.78372205]
[1758913346992,6.48641782,4040.2,4039.9,0.1587]
[1758913347211,6.48641782,4040.2,4040.0,0.44519]
[1758913347212,1.16303977,4040.1,4040.0,0.44519]
[1758913348092,1.16303977,4040.1,4040.0,0.44714096]
[1758913348394,1.60820977,4040.1,4040.0,0.44714096]
[1758913348795,1.16303977,4040.1,4040.0,0.44714096]
[1758913349308,1.16303977,4040.1,4039.9,0.1587]
[1758913349309,0.6162,4040.0,4039.9,0.6039]
[1758913349496,1.41503977,4040.0,4039.9,0.6039]
[1758913349795,1.86022977,4040.0,4039.9,0.6039]
[1758913349996,1.86022977,4040.0,4039.9,0.9406]
[1758913350195,1.86022977,4040.0,4039.9,0.4954]
[1758913350495,1.86022977,4040.0,4039.9,0.1606128]
[1758913351191,0.6162,4039.5,4039.1,0.44528]
[1758913351498,0.6162,4039.3,4039.2,0.78197]
[1758913351798,1.16303977,4039.3,4039.2,0.98567]
[1758913352097,0.99103977,4039.3,4039.2,0.98567]
[1758913352295,0.99103977,4039.3,4039.2,0.98883191]
[1758913352484,2.40944782,4039.3,4039.2,1.20073191]
[1758913354300,2.40944782,4039.3,4039.2,1.19433191]
[1758913354994,3.02670782,4039.3,4039.2,0.00316191]
[1758913355313,3.02670782,4039.3,4039.2,0.98883191]
[1758913355690,2.58144782,4039.3,4039.2,0.98883191]
[1758913355992,3.02670782,4039.3,4039.2,0.98883191]
[1758913356589,3.02670782,4039.3,4039.2,0.33986191]
[1758913356801,3.02670782,4039.3,4039.2,0.00316191]
[1758913357092,3.02670782,4039.3,4039.2,0.33986191]
[1758913357299,0.44539,4038.2,4038.1,0.3367]
[1758913357503,6.2966161,4038.2,4037.0,0.1238]
[1758913357797,3.2078,4037.7,4037.5,0.98486]
[1758913357997,1.41840805,4038.1,4038.0,0.5394]
[1758913358195,3.2078,4038.2,4038.1,0.861]
[1758913358391,4.0184848,4038.2,4038.1,0.861]
[1758913358608,13.0884848,4038.2,4038.1,0.861]
[1758913358792,12.5319312,4038.2,4038.1,0.861]
[1758913358992,13.08610441,4038.2,4038.1,0.861]
[1758913359194,3.2099312,4038.2,4038.1,0.4156]
[1758913359397,4.62833925,4038.2,4038.1,0.4156]
[1758913359597,4.88033925,4038.2,4038.1,0.7523]
[1758913359799,3.4619312,4038.2,4038.1,0.7523]
[1758913360002,4.88033925,4038.2,4038.1,0.7523]
[1758913361788,3.4629312,4038.2,4038.1,0.7523]
[1758913362695,3.2099312,4038.2,4038.1,0.7523]
[1758913362902,3.4629312,4038.2,4038.1,0.7523]
[1758913363390,3.2099312,4038.2,4038.1,0.7523]
[1758913363594,3.2099312,4038.2,4038.1,5.7523]
[1758913363794,4.62833925,4038.2,4038.1,0.7523]
[1758913363991,3.2099312,4038.2,4038.1,0.7523]
[1758913364195,4.62833925,4038.2,4038.1,0.7523]
[1758913364606,4.62833925,4038.2,4038.1,0.5404]
[1758913365605,0.0021312,4038.2,4038.1,0.7457]
[1758913366101,0.2551312,4038.2,4038.1,0.7457]
[1758913366904,3.4629312,4038.2,4038.1,0.7457]
[1758913367900,3.4629312,4038.2,4038.1,0.5404]
[1758913368101,4.30788039,4038.2,4038.1,0.0404]
[1758913368302,4.84457039,4038.2,4038.0,0.1262687]
[1758913368510,2.35464633,4038.1,4038.0,0.0024687]
[1758913369212,2.35464633,4038.1,4038.0,0.0016687]
[1758913370713,0.3835,4037.3,4037.2,0.77949]
[1758913370905,1.96360805,4037.3,4037.2,1.20179]
[1758913371100,2.05490805,4037.3,4037.2,0.77949]
[1758913371308,2.5164293,4037.3,4037.2,0.77949]
[1758913371508,2.5164293,4037.3,4035.5,13.49878]
[1758913371509,0.3835,4036.9,4036.8,0.334]
[1758913371704,0.3835,4036.9,4036.8,0.3364537]
[1758913371705,2.6077293,4036.9,4036.8,0.3364537]
[1758913371901,2.5164293,4036.9,4036.8,0.3364537]
[1758913372102,0.253,4036.9,4036.8,0.7587537]
[1758913372301,3.2078,4037.0,4036.9,1.20183]
[1758913372510,0.253,4037.0,4036.9,1.20183]
[1758913373112,1.41840805,4037.3,4037.2,0.86779]
[1758913373314,2.37066454,4037.3,4037.2,1.20179]
[1758913373612,1.67140805,4037.3,4037.2,1.20179]
[1758913374112,1.96360805,4037.3,4037.2,0.334]
[1758913374307,2.51694429,4037.3,4037.2,0.99649]
[1758913374819,1.67140805,4037.3,4037.2,1.20179]
[1758913375021,0.253,4037.3,4037.2,1.20179]
[1758913375211,1.81750805,4037.3,4037.2,1.20179]
[1758913375814,1.67140805,4037.3,4037.2,1.20179]
[1758913376610,1.81750805,4037.3,4037.2,1.20179]
[1758913377013,1.96360805,4037.3,4037.2,1.20179]
[1758913377315,2.51711118,4037.3,4037.2,1.20179]
[1758913377618,1.96360805,4037.3,4037.2,1.20179]
[1758913377818,1.81750805,4037.3,4037.2,1.20179]
[1758913378015,1.67140805,4037.3,4037.2,1.20179]
[1758913378218,1.81750805,4037.3,4037.2,1.20179]
[1758913379019,0.1461,4037.3,4037.2,1.20179]
[1758913379234,1.96360805,4037.3,4037.2,1.20179]
[1758913379515,2.60891396,4037.3,4037.2,0.27949]
[1758913380212,2.26461396,4037.3,4037.2,0.70179]
[1758913380409,2.51761396,4037.3,4037.2,0.70179]
[1758913380815,2.26461396,4037.3,4037.2,0.70179]
[1758913381016,2.51761396,4037.3,4037.2,0.70179]
[1758913381723,2.51761396,4037.3,4037.2,1.03579]
[1758913381923,2.26461396,4037.3,4037.2,1.03579]
[1758913382425,2.83151396,4037.3,4037.2,1.03579]
[1758913383017,2.51761396,4037.3,4037.2,1.03579]
[1758913383422,3.2078,4038.0,4037.9,0.66242]
[1758913383630,3.887,4038.0,4037.9,1.20172]
[1758913383925,4.2009,4038.0,4037.9,1.20172]
[1758913384118,4.3122,4038.0,4037.5,0.1282]
[1758913384316,5.36630805,4038.0,4037.9,1.20172]
[1758913384513,3.634,4038.0,4037.9,1.20172]
[1758913384814,3.887,4038.0,4037.9,1.20172]
[1758913385018,3.6677,4038.0,4037.9,1.20172]
[1758913385214,0.2069,4039.1,4039.0,0.9075]
[1758913385426,3.9479,4039.5,4039.4,1.20155]
[1758913385618,5.36630805,4039.5,4039.4,1.20155]
[1758913385825,0.7536,4039.4,4039.3,0.44525]
[1758913386134,2.42600805,4039.4,4039.3,0.98385]
[1758913386316,2.4285004,4039.4,4039.3,0.98385]
[1758913386721,2.1148004,4039.4,4039.3,1.20895]
[1758913386922,0.44239235,4039.4,4039.3,1.20895]
[1758913387222,0.25649235,4039.4,4039.3,1.20895]
[1758913387428,3.4223,4040.0,4039.9,0.9838]
[1758913387619,2.03821294,4040.5,4040.4,1.20884]
[1758913387620,7.01302099,4040.5,4040.4,1.20884]
[1758913387816,5.32010805,4040.5,4040.4,1.20884]
[1758913388420,5.32261136,4040.5,4040.4,1.211529]
[1758913388819,4.32261136,4040.5,4040.4,1.211529]
[1758913389422,2.11481136,4040.5,4040.4,1.211529]
[1758913390833,2.51981136,4040.5,4040.4,0.447829]
[1758913391032,0.4399,4039.6,4039.5,1.34124]
[1758913391335,0.2145,4039.6,4039.5,1.34124]
[1758913391830,1.64380805,4040.1,4040.0,0.44519]
[1758913392036,2.11230805,4040.1,4040.0,0.44519]
[1758913392527,2.42420805,4040.1,4040.0,0.44519]
[1758913392931,2.42420805,4040.1,4039.6,1.11306]
[1758913392932,0.4304,4039.7,4039.6,0.44523]
[1758913393130,0.9973,4039.7,4039.6,0.44523]
[1758913393322,5.9973,4039.7,4039.6,0.44523]
[1758913394428,6.44252,4039.7,4039.5,0.00229056]
[1758913394634,3.9501,4039.6,4039.5,0.00229056]
[1758913395337,3.9501,4039.6,4039.5,0.53439056]
[1758913395831,4.2051,4039.6,4039.5,0.53439056]
[1758913396237,5.62350805,4039.6,4039.5,0.00229056]
[1758913396637,11.15720245,4039.6,4039.5,0.00229056]
[1758913397330,4.7387944,4039.6,4039.5,0.53439056]
[1758913397531,5.62350805,4039.6,4039.5,0.53439056]
[1758913397932,5.62350805,4039.6,4039.5,0.00229056]
[1758913399238,6.06873805,4039.6,4039.5,0.00229056]
[1758913399636,0.4304,4038.9,4038.8,3.65312]
[1758913399838,0.9973,4038.9,4038.8,3.65312]
[1758913400143,0.9973,4038.9,4038.8,0.44532]
[1758913400355,0.6854,4038.9,4038.8,1.19032]
[1758913400644,0.2077,4039.3,4039.2,1.19027]
[1758913400843,0.4627,4039.3,4039.2,1.19027]
[1758913401144,0.6854,4039.3,4039.2,1.19027]
[1758913401344,0.5346,4039.0,4038.9,0.3141]
[1758913401642,2.41570805,4039.0,4038.9,0.75941]
[1758913401830,2.41570805,4039.0,4038.9,0.44531]
[1758913402039,1.18761,4038.9,4038.8,0.00290058]
[1758913402341,0.87572,4038.8,4038.7,0.44533]
[1758913402548,0.7423,4038.6,4038.5,0.44534]
[1758913402842,0.9973,4038.6,4038.5,0.44534]
[1758913403246,1.44264,4038.6,4038.5,0.44534]
[1758913403443,0.9973,4038.6,4038.5,0.44762241]
[1758913403744,0.9973,4038.6,4038.5,0.76172241]
[1758913404240,0.0913,4038.5,4037.8,3.2078]
[1758913404445,0.0913,4038.5,4037.5,1.31626]